[Event "Titled Tuesday Blitz June 07 Late 2022"]
[White "Milanovic, Marko"]
[Black "Van Foreest, Jorden"]
[WhiteFideId "980129"]
[BlackFideId "1039784"]
[WhiteElo "2151"]
[BlackElo "2609"]
[Result "0-1"]
[Round "02"]
[TimeControl "180+1"]
[Date "2022.06.07"]
[WhiteClock "0:00:17"]
[BlackClock "0:01:14"]

1. Nf3 {[%clk 0:03:00]}  Nc6 {[%clk 0:02:53]} 2. g3 {[%clk 0:02:58]}  d5 {[%clk 0:02:53]} 3. Bg2 {[%clk 0:02:57]}  e5 {[%clk 0:02:53]} 4. d3 {[%clk 0:02:56]}  Nf6 {[%clk 0:02:54]} 5. O-O {[%clk 0:02:55]}  Be7 {[%clk 0:02:55]} 6. b3 {[%clk 0:02:52]}  O-O {[%clk 0:02:53]} 7. Bb2 {[%clk 0:02:51]}  Bd6 {[%clk 0:02:49]} 8. c4 {[%clk 0:02:41]}  d4 {[%clk 0:02:48]} 9. a3 {[%clk 0:02:39]}  a5 {[%clk 0:02:48]} 10. Nbd2 {[%clk 0:02:38]}  Re8 {[%clk 0:02:48]} 11. Rc1 {[%clk 0:02:35]}  h6 {[%clk 0:02:47]} 12. Re1 {[%clk 0:02:30]}  Qe7 {[%clk 0:02:47]} 13. Qc2 {[%clk 0:02:24]}  Bxa3 {[%clk 0:02:41]} 14. c5 {[%clk 0:02:19]}  Nb4 {[%clk 0:02:38]} 15. Qb1 {[%clk 0:02:16]}  Bxb2 {[%clk 0:02:38]} 16. Qxb2 {[%clk 0:02:17]}  Bf5 {[%clk 0:02:31]} 17. Nc4 {[%clk 0:02:01]}  Nd7 {[%clk 0:02:27]} 18. Qa3 {[%clk 0:01:51]}  Nc6 {[%clk 0:02:16]} 19. Nh4 {[%clk 0:01:45]}  Be6 {[%clk 0:02:06]} 20. Bxc6 {[%clk 0:01:39]}  bxc6 {[%clk 0:02:07]} 21. Nxa5 {[%clk 0:01:36]}  Bd5 {[%clk 0:02:06]} 22. b4 {[%clk 0:01:31]}  e4 {[%clk 0:02:02]} 23. dxe4 {[%clk 0:01:28]}  Qxe4 {[%clk 0:02:02]} 24. f3 {[%clk 0:01:26]}  Qe7 {[%clk 0:01:47]} 25. Qd3 {[%clk 0:01:14]}  Qf6 {[%clk 0:01:34]} 26. Red1 {[%clk 0:00:48]}  Re3 {[%clk 0:01:23]} 27. Qxd4 {[%clk 0:00:22]}  Qxd4 {[%clk 0:01:24]} 28. Rxd4 {[%clk 0:00:22]}  Rxe2 {[%clk 0:01:25]} 29. Rcd1 {[%clk 0:00:20]}  g5 {[%clk 0:01:21]} 30. Nf5 {[%clk 0:00:20]}  Ne5 {[%clk 0:01:21]} 31. Ne7+ {[%clk 0:00:17]}  Kg7 {[%clk 0:01:20]} 32. Nxd5 {[%clk 0:00:17]}  Nxf3+ {[%clk 0:01:20]} 33. Kf1 {[%clk 0:00:17]}  Nxd4 {[%clk 0:01:15]} 34. Rxd4 {[%clk 0:00:17]}  Rxh2 {[%clk 0:01:14]} 35. Nxc6 {[%clk 0:00:17]}  Ra1+ {[%clk 0:01:14]} 0-1


[Site "https://www.chess.com"]

[Event "Titled Tuesday Blitz June 07 Late 2022"]
[White "Paravyan, David"]
[Black "Florescu, Codrut-Constantin"]
[WhiteFideId "4194985"]
[BlackFideId "1202200"]
[WhiteElo "2569"]
[BlackElo "2191"]
[Result "1-0"]
[Round "02"]
[TimeControl "180+1"]
[Date "2022.06.07"]
[WhiteClock "0:01:49"]
[BlackClock "0:02:12"]

1. e4 {[%clk 0:03:00]}  c5 {[%clk 0:02:59]} 2. Nf3 {[%clk 0:03:01]}  e6 {[%clk 0:02:59]} 3. d4 {[%clk 0:03:01]}  cxd4 {[%clk 0:03:00]} 4. Nxd4 {[%clk 0:03:01]}  a6 {[%clk 0:03:01]} 5. Nc3 {[%clk 0:02:59]}  Qc7 {[%clk 0:03:01]} 6. Bd3 {[%clk 0:02:52]}  Nf6 {[%clk 0:03:00]} 7. Qe2 {[%clk 0:02:49]}  d6 {[%clk 0:02:59]} 8. f4 {[%clk 0:02:48]}  Nbd7 {[%clk 0:02:58]} 9. Bd2 {[%clk 0:02:48]}  b5 {[%clk 0:02:56]} 10. a3 {[%clk 0:02:48]}  Bb7 {[%clk 0:02:56]} 11. O-O-O {[%clk 0:02:48]}  Nc5 {[%clk 0:02:49]} 12. Kb1 {[%clk 0:02:33]}  Nxd3 {[%clk 0:02:45]} 13. cxd3 {[%clk 0:02:32]}  Be7 {[%clk 0:02:37]} 14. Rc1 {[%clk 0:02:27]}  Qd8 {[%clk 0:02:34]} 15. g4 {[%clk 0:02:25]}  O-O {[%clk 0:02:31]} 16. g5 {[%clk 0:02:24]}  Nd7 {[%clk 0:02:32]} 17. f5 {[%clk 0:02:17]}  exf5 {[%clk 0:02:24]} 18. Nxf5 {[%clk 0:02:16]}  Nc5 {[%clk 0:02:21]} 19. Rhg1 {[%clk 0:02:11]}  Re8 {[%clk 0:02:17]} 20. Qf3 {[%clk 0:01:56]}  Bf8 {[%clk 0:02:13]} 21. Nh6+ {[%clk 0:01:52]}  gxh6 {[%clk 0:02:12]} 22. gxh6+ {[%clk 0:01:53]}  Kh8 {[%clk 0:02:12]} 23. Qxf7 {[%clk 0:01:49]} 1-0


[Site "https://www.chess.com"]

[Event "Titled Tuesday Blitz June 07 Late 2022"]
[White "Plotnikov, Pavel"]
[Black "Holt, Conrad"]
[WhiteFideId "4170342"]
[BlackFideId "2034387"]
[WhiteElo "2298"]
[BlackElo "2586"]
[Result "0-1"]
[Round "02"]
[TimeControl "180+1"]
[Date "2022.06.07"]
[WhiteClock "0:02:17"]
[BlackClock "0:01:47"]

1. e4 {[%clk 0:03:00]}  e6 {[%clk 0:02:55]} 2. d4 {[%clk 0:03:00]}  d5 {[%clk 0:02:55]} 3. e5 {[%clk 0:03:00]}  c5 {[%clk 0:02:55]} 4. c3 {[%clk 0:03:01]}  Nc6 {[%clk 0:02:54]} 5. Nf3 {[%clk 0:03:01]}  Bd7 {[%clk 0:02:53]} 6. a3 {[%clk 0:03:01]}  f6 {[%clk 0:02:50]} 7. Bd3 {[%clk 0:02:58]}  Qc7 {[%clk 0:02:46]} 8. exf6 {[%clk 0:02:51]}  Nxf6 {[%clk 0:02:44]} 9. O-O {[%clk 0:02:52]}  Bd6 {[%clk 0:02:42]} 10. Bg5 {[%clk 0:02:46]}  O-O {[%clk 0:02:38]} 11. Bh4 {[%clk 0:02:44]}  Ne4 {[%clk 0:02:26]} 12. Bg3 {[%clk 0:02:40]}  Nxg3 {[%clk 0:02:22]} 13. hxg3 {[%clk 0:02:41]}  Qb6 {[%clk 0:02:10]} 14. b4 {[%clk 0:02:39]}  cxd4 {[%clk 0:02:08]} 15. cxd4 {[%clk 0:02:39]}  Rxf3 {[%clk 0:01:58]} 16. Qxf3 {[%clk 0:02:36]}  Qxd4 {[%clk 0:01:56]} 17. Nd2 {[%clk 0:02:30]}  Ne5 {[%clk 0:01:54]} 18. Bxh7+ {[%clk 0:02:18]}  Kxh7 {[%clk 0:01:54]} 19. Qh5+ {[%clk 0:02:18]}  Kg8 {[%clk 0:01:54]} 20. Nb3 {[%clk 0:02:18]}  Qg4 {[%clk 0:01:48]} 21. Qxg4 {[%clk 0:02:17]}  Nxg4 {[%clk 0:01:48]} 22. f3 {[%clk 0:02:17]}  Ne3 {[%clk 0:01:47]} 23. Rfe1 {[%clk 0:02:17]}  Nc2 {[%clk 0:01:47]} 0-1


[Site "https://www.chess.com"]

[Event "Titled Tuesday Blitz June 07 Late 2022"]
[White "Popilski, Gil"]
[Black "Terry, Renato"]
[WhiteFideId "2809060"]
[BlackFideId "3803457"]
[WhiteElo "2537"]
[BlackElo "2577"]
[Result "0-1"]
[Round "02"]
[TimeControl "180+1"]
[Date "2022.06.07"]
[WhiteClock "0:00:01"]
[BlackClock "0:00:05"]

1. e4 {[%clk 0:03:00]}  e6 {[%clk 0:03:00]} 2. d4 {[%clk 0:02:59]}  d5 {[%clk 0:03:00]} 3. Nc3 {[%clk 0:02:58]}  Nf6 {[%clk 0:03:00]} 4. e5 {[%clk 0:02:56]}  Nfd7 {[%clk 0:03:00]} 5. f4 {[%clk 0:02:56]}  c5 {[%clk 0:03:01]} 6. Nf3 {[%clk 0:02:56]}  Nc6 {[%clk 0:03:01]} 7. Be3 {[%clk 0:02:55]}  Be7 {[%clk 0:03:02]} 8. Qd2 {[%clk 0:02:54]}  O-O {[%clk 0:03:02]} 9. a3 {[%clk 0:02:54]}  a6 {[%clk 0:03:00]} 10. Bd3 {[%clk 0:02:51]}  f6 {[%clk 0:02:59]} 11. O-O {[%clk 0:02:43]}  fxe5 {[%clk 0:02:51]} 12. fxe5 {[%clk 0:02:35]}  cxd4 {[%clk 0:02:44]} 13. Nxd4 {[%clk 0:02:33]}  Ndxe5 {[%clk 0:02:44]} 14. Rxf8+ {[%clk 0:02:33]}  Bxf8 {[%clk 0:02:40]} 15. Rf1 {[%clk 0:02:26]}  Nxd3 {[%clk 0:02:39]} 16. cxd3 {[%clk 0:02:11]}  e5 {[%clk 0:01:57]} 17. Qf2 {[%clk 0:02:00]}  Qf6 {[%clk 0:01:45]} 18. Qg3 {[%clk 0:01:40]}  Qg6 {[%clk 0:01:41]} 19. Qf3 {[%clk 0:01:37]}  Bg4 {[%clk 0:00:51]} 20. Qxd5+ {[%clk 0:01:35]}  Kh8 {[%clk 0:00:51]} 21. Nxc6 {[%clk 0:01:27]}  bxc6 {[%clk 0:00:52]} 22. Qxe5 {[%clk 0:01:26]}  Qxd3 {[%clk 0:00:43]} 23. Bd4 {[%clk 0:01:15]}  Qg6 {[%clk 0:00:43]} 24. Ne4 {[%clk 0:00:47]}  h6 {[%clk 0:00:38]} 25. Nf6 {[%clk 0:00:43]}  Bh3 {[%clk 0:00:32]} 26. Rf2 {[%clk 0:00:38]}  Rd8 {[%clk 0:00:29]} 27. Nd7 {[%clk 0:00:20]}  Bxd7 {[%clk 0:00:29]} 28. Qc7 {[%clk 0:00:17]}  Qe8 {[%clk 0:00:18]} 29. h3 {[%clk 0:00:14]}  Rc8 {[%clk 0:00:06]} 30. Rxf8+ {[%clk 0:00:10]}  Qxf8 {[%clk 0:00:07]} 31. Qxd7 {[%clk 0:00:11]}  Ra8 {[%clk 0:00:02]} 32. Qxc6 {[%clk 0:00:10]}  Kh7 {[%clk 0:00:02]} 33. Qe4+ {[%clk 0:00:10]}  Kg8 {[%clk 0:00:03]} 34. Qe6+ {[%clk 0:00:10]}  Qf7 {[%clk 0:00:02]} 35. Qc6 {[%clk 0:00:08]}  Rd8 {[%clk 0:00:03]} 36. Bc3 {[%clk 0:00:08]}  Rd1+ {[%clk 0:00:02]} 37. Kh2 {[%clk 0:00:08]}  Qd5 {[%clk 0:00:02]} 38. Qc8+ {[%clk 0:00:07]}  Kh7 {[%clk 0:00:02]} 39. h4 {[%clk 0:00:06]}  Qe4 {[%clk 0:00:02]} 40. Qc7 {[%clk 0:00:04]}  Qg6 {[%clk 0:00:02]} 41. Qf4 {[%clk 0:00:04]}  Qh5 {[%clk 0:00:02]} 42. Qe4+ {[%clk 0:00:03]}  Qg6 {[%clk 0:00:02]} 43. Qf3 {[%clk 0:00:04]}  Rd6 {[%clk 0:00:02]} 44. h5 {[%clk 0:00:04]}  Qe6 {[%clk 0:00:03]} 45. Qf4 {[%clk 0:00:04]}  Rd7 {[%clk 0:00:03]} 46. Qg3 {[%clk 0:00:03]}  Qf5 {[%clk 0:00:03]} 47. Qh4 {[%clk 0:00:04]}  Rd5 {[%clk 0:00:04]} 48. Qg3 {[%clk 0:00:03]}  Qxh5+ {[%clk 0:00:04]} 49. Kg1 {[%clk 0:00:03]}  Rg5 {[%clk 0:00:04]} 50. Qd3+ {[%clk 0:00:03]}  Qg6 {[%clk 0:00:05]} 51. Qf3 {[%clk 0:00:03]}  Qb1+ {[%clk 0:00:05]} 52. Kh2 {[%clk 0:00:03]}  Qg6 {[%clk 0:00:06]} 53. Kg1 {[%clk 0:00:03]}  Rf5 {[%clk 0:00:06]} 54. Qe3 {[%clk 0:00:03]}  h5 {[%clk 0:00:07]} 55. Kh2 {[%clk 0:00:03]}  Qg4 {[%clk 0:00:07]} 56. Qe7 {[%clk 0:00:02]}  Rg5 {[%clk 0:00:07]} 57. Qb7 {[%clk 0:00:02]}  Qg3+ {[%clk 0:00:06]} 58. Kh1 {[%clk 0:00:02]}  Qg4 {[%clk 0:00:07]} 59. Qc6 {[%clk 0:00:01]}  h4 {[%clk 0:00:07]} 60. Kh2 {[%clk 0:00:02]}  a5 {[%clk 0:00:07]} 61. Qa6 {[%clk 0:00:01]}  a4 {[%clk 0:00:07]} 62. Qd3+ {[%clk 0:00:01]}  Rg6 {[%clk 0:00:06]} 63. Qe3 {[%clk 0:00:01]}  Qxg2# {[%clk 0:00:05]} 0-1


[Site "https://www.chess.com"]

[Event "Titled Tuesday Blitz June 07 Late 2022"]
[White "Przybylski, Wojciech"]
[Black "Martinez Alcantara, Jose Eduardo"]
[WhiteFideId "1117599"]
[BlackFideId "3805662"]
[WhiteElo "2133"]
[BlackElo "2703"]
[Result "0-1"]
[Round "02"]
[TimeControl "180+1"]
[Date "2022.06.07"]
[WhiteClock "0:00:05"]
[BlackClock "0:00:03"]

1. e4 {[%clk 0:02:56]}  c5 {[%clk 0:03:00]} 2. Nf3 {[%clk 0:02:55]}  d6 {[%clk 0:03:00]} 3. Bb5+ {[%clk 0:02:54]}  Nd7 {[%clk 0:03:01]} 4. Ba4 {[%clk 0:02:53]}  Nf6 {[%clk 0:03:00]} 5. Nc3 {[%clk 0:02:52]}  a6 {[%clk 0:03:00]} 6. Bb3 {[%clk 0:02:51]}  e6 {[%clk 0:03:00]} 7. O-O {[%clk 0:02:51]}  Be7 {[%clk 0:02:58]} 8. a4 {[%clk 0:02:48]}  b6 {[%clk 0:02:49]} 9. d4 {[%clk 0:02:47]}  Qc7 {[%clk 0:02:38]} 10. d5 {[%clk 0:02:45]}  e5 {[%clk 0:02:38]} 11. Bc4 {[%clk 0:02:41]}  g6 {[%clk 0:02:38]} 12. Bh6 {[%clk 0:02:37]}  Bf8 {[%clk 0:02:37]} 13. Be3 {[%clk 0:02:34]}  Bg7 {[%clk 0:02:36]} 14. h3 {[%clk 0:02:34]}  O-O {[%clk 0:02:37]} 15. Nh2 {[%clk 0:02:28]}  Nh5 {[%clk 0:02:36]} 16. Ne2 {[%clk 0:02:21]}  Rb8 {[%clk 0:02:23]} 17. Qd3 {[%clk 0:02:14]}  Qb7 {[%clk 0:02:23]} 18. Ba2 {[%clk 0:02:03]}  b5 {[%clk 0:02:21]} 19. axb5 {[%clk 0:02:03]}  axb5 {[%clk 0:02:22]} 20. b4 {[%clk 0:01:44]}  c4 {[%clk 0:02:17]} 21. Qd2 {[%clk 0:01:43]}  Nb6 {[%clk 0:01:59]} 22. Nc3 {[%clk 0:01:38]}  Bd7 {[%clk 0:01:59]} 23. Rae1 {[%clk 0:01:21]}  Ra8 {[%clk 0:01:53]} 24. Bh6 {[%clk 0:00:55]}  Ra3 {[%clk 0:01:39]} 25. Bxg7 {[%clk 0:00:53]}  Kxg7 {[%clk 0:01:40]} 26. Ng4 {[%clk 0:00:50]}  Bxg4 {[%clk 0:01:13]} 27. hxg4 {[%clk 0:00:49]}  Nf6 {[%clk 0:01:14]} 28. g5 {[%clk 0:00:46]}  Nh5 {[%clk 0:01:14]} 29. g3 {[%clk 0:00:44]}  Nd7 {[%clk 0:01:04]} 30. Re3 {[%clk 0:00:41]}  f6 {[%clk 0:00:56]} 31. f4 {[%clk 0:00:37]}  fxg5 {[%clk 0:00:55]} 32. fxg5 {[%clk 0:00:37]}  Rxf1+ {[%clk 0:00:54]} 33. Kxf1 {[%clk 0:00:37]}  Qb6 {[%clk 0:00:47]} 34. Kg2 {[%clk 0:00:32]}  Kg8 {[%clk 0:00:35]} 35. Rf3 {[%clk 0:00:31]}  Ra8 {[%clk 0:00:32]} 36. Qf2 {[%clk 0:00:28]}  Qxf2+ {[%clk 0:00:31]} 37. Kxf2 {[%clk 0:00:28]}  Ng7 {[%clk 0:00:22]} 38. Bb1 {[%clk 0:00:27]}  Rb8 {[%clk 0:00:22]} 39. Ke3 {[%clk 0:00:26]}  Ne8 {[%clk 0:00:23]} 40. Ne2 {[%clk 0:00:25]}  Nc7 {[%clk 0:00:23]} 41. Rf1 {[%clk 0:00:25]}  Ra8 {[%clk 0:00:22]} 42. Kd2 {[%clk 0:00:24]}  Kg7 {[%clk 0:00:19]} 43. c3 {[%clk 0:00:24]}  Nb6 {[%clk 0:00:13]} 44. Bc2 {[%clk 0:00:23]}  Ra2 {[%clk 0:00:11]} 45. Kc1 {[%clk 0:00:20]}  Ra1+ {[%clk 0:00:10]} 46. Bb1 {[%clk 0:00:20]}  Ra7 {[%clk 0:00:11]} 47. Kc2 {[%clk 0:00:19]}  Na6 {[%clk 0:00:06]} 48. Ng1 {[%clk 0:00:18]}  Rf7 {[%clk 0:00:05]} 49. Rxf7+ {[%clk 0:00:18]}  Kxf7 {[%clk 0:00:06]} 50. Nf3 {[%clk 0:00:18]}  Nc7 {[%clk 0:00:07]} 51. Nh2 {[%clk 0:00:18]}  Nd7 {[%clk 0:00:05]} 52. Nf3 {[%clk 0:00:16]}  Kg7 {[%clk 0:00:05]} 53. Kd2 {[%clk 0:00:17]}  h5 {[%clk 0:00:06]} 54. Bc2 {[%clk 0:00:16]}  Kf7 {[%clk 0:00:06]} 55. Bd1 {[%clk 0:00:16]}  Nb6 {[%clk 0:00:07]} 56. Be2 {[%clk 0:00:16]}  Na4 {[%clk 0:00:07]} 57. Kc2 {[%clk 0:00:16]}  Nb6 {[%clk 0:00:08]} 58. Bf1 {[%clk 0:00:16]}  Ke7 {[%clk 0:00:07]} 59. Bg2 {[%clk 0:00:16]}  Nd7 {[%clk 0:00:06]} 60. Bh3 {[%clk 0:00:16]}  Nf8 {[%clk 0:00:07]} 61. Bc8 {[%clk 0:00:16]}  Kd8 {[%clk 0:00:07]} 62. Bh3 {[%clk 0:00:16]}  Nh7 {[%clk 0:00:07]} 63. g4 {[%clk 0:00:15]}  hxg4 {[%clk 0:00:03]} 64. Bxg4 {[%clk 0:00:16]}  Ke7 {[%clk 0:00:04]} 65. Bc8 {[%clk 0:00:16]}  Nf8 {[%clk 0:00:04]} 66. Kd2 {[%clk 0:00:16]}  Kd8 {[%clk 0:00:05]} 67. Bg4 {[%clk 0:00:15]}  Na8 {[%clk 0:00:05]} 68. Ke3 {[%clk 0:00:15]}  Nb6 {[%clk 0:00:06]} 69. Kd2 {[%clk 0:00:15]}  Kc7 {[%clk 0:00:07]} 70. Bh3 {[%clk 0:00:16]}  Na4 {[%clk 0:00:07]} 71. Bg4 {[%clk 0:00:15]}  Nb2 {[%clk 0:00:07]} 72. Be6 {[%clk 0:00:14]}  Nd3 {[%clk 0:00:05]} 73. Bf7 {[%clk 0:00:13]}  Nf4 {[%clk 0:00:05]} 74. Ke3 {[%clk 0:00:13]}  Kd7 {[%clk 0:00:06]} 75. Nh4 {[%clk 0:00:12]}  Ke7 {[%clk 0:00:05]} 76. Bg8 {[%clk 0:00:12]}  Nh3 {[%clk 0:00:04]} 77. Nf3 {[%clk 0:00:12]}  Nf4 {[%clk 0:00:04]} 78. Nh4 {[%clk 0:00:12]}  Nh3 {[%clk 0:00:04]} 79. Nf3 {[%clk 0:00:12]}  Ke8 {[%clk 0:00:05]} 80. Kd2 {[%clk 0:00:10]}  Nf4 {[%clk 0:00:04]} 81. Ke3 {[%clk 0:00:10]}  Kd8 {[%clk 0:00:04]} 82. Nh4 {[%clk 0:00:10]}  Ke7 {[%clk 0:00:04]} 83. Nf3 {[%clk 0:00:10]}  Nd3 {[%clk 0:00:04]} 84. Nh4 {[%clk 0:00:09]}  Nc1 {[%clk 0:00:04]} 85. Nf3 {[%clk 0:00:08]}  Nd3 {[%clk 0:00:03]} 86. Nh4 {[%clk 0:00:08]}  Ke8 {[%clk 0:00:03]} 87. Nf3 {[%clk 0:00:08]}  Nc1 {[%clk 0:00:03]} 88. Nh4 {[%clk 0:00:08]}  Nb3 {[%clk 0:00:03]} 89. Nf3 {[%clk 0:00:05]}  Na1 {[%clk 0:00:03]} 90. Kd2 {[%clk 0:00:04]}  Nb3+ {[%clk 0:00:04]} 91. Ke3 {[%clk 0:00:04]}  Nc1 {[%clk 0:00:04]} 92. Nh4 {[%clk 0:00:04]}  Nd3 {[%clk 0:00:04]} 93. Nf3 {[%clk 0:00:04]}  Nf4 {[%clk 0:00:04]} 94. Nh4 {[%clk 0:00:04]}  Nh5 {[%clk 0:00:04]} 95. Nf3 {[%clk 0:00:04]}  Ng7 {[%clk 0:00:04]} 96. Nh4 {[%clk 0:00:04]}  Ke7 {[%clk 0:00:04]} 97. Nf3 {[%clk 0:00:04]}  Ne8 {[%clk 0:00:04]} 98. Nh4 {[%clk 0:00:04]}  Nc7 {[%clk 0:00:04]} 99. Nf3 {[%clk 0:00:04]}  Na8 {[%clk 0:00:03]} 100. Nh4 {[%clk 0:00:04]}  Nb6 {[%clk 0:00:04]} 101. Nf3 {[%clk 0:00:04]}  Na4 {[%clk 0:00:04]} 102. Kd2 {[%clk 0:00:05]}  Nb6 {[%clk 0:00:04]} 103. Nh4 {[%clk 0:00:05]}  Ke8 {[%clk 0:00:04]} 104. Ke3 {[%clk 0:00:05]}  Nc8 {[%clk 0:00:04]} 105. Nf3 {[%clk 0:00:05]}  Ne7 {[%clk 0:00:05]} 106. Be6 {[%clk 0:00:04]}  Nxe6 {[%clk 0:00:05]} 107. dxe6 {[%clk 0:00:04]}  Kd8 {[%clk 0:00:04]} 108. Nh4 {[%clk 0:00:04]}  Kc7 {[%clk 0:00:05]} 109. Kf3 {[%clk 0:00:04]}  Kc6 {[%clk 0:00:05]} 110. Ke3 {[%clk 0:00:05]}  d5 {[%clk 0:00:05]} 111. exd5+ {[%clk 0:00:03]}  Kxd5 {[%clk 0:00:06]} 112. Kf3 {[%clk 0:00:04]}  Kxe6 {[%clk 0:00:02]} 113. Ke4 {[%clk 0:00:03]}  Kd6 {[%clk 0:00:03]} 114. Nf3 {[%clk 0:00:03]}  Nd5 {[%clk 0:00:04]} 115. Nxe5 {[%clk 0:00:02]}  Nxc3+ {[%clk 0:00:04]} 116. Kd4 {[%clk 0:00:02]}  Ne2+ {[%clk 0:00:04]} 117. Ke4 {[%clk 0:00:03]}  c3 {[%clk 0:00:05]} 118. Nxg6 {[%clk 0:00:02]}  c2 {[%clk 0:00:05]} 119. Ne5 {[%clk 0:00:01]}  c1=Q {[%clk 0:00:05]} 120. Nf7+ {[%clk 0:00:02]}  Ke7 {[%clk 0:00:05]} 121. Kf5 {[%clk 0:00:03]}  Kxf7 {[%clk 0:00:05]} 122. g6+ {[%clk 0:00:04]}  Kg7 {[%clk 0:00:05]} 123. Kg4 {[%clk 0:00:04]}  Qf4+ {[%clk 0:00:05]} 124. Kh5 {[%clk 0:00:05]}  Ng3# {[%clk 0:00:03]} 0-1


[Site "https://www.chess.com"]

[Event "Titled Tuesday Blitz June 07 Late 2022"]
[White "Rasulov, Vugar"]
[Black "Jocev, Milan"]
[WhiteFideId "13402390"]
[BlackFideId "900680"]
[WhiteElo "2560"]
[BlackElo "2322"]
[Result "1-0"]
[Round "02"]
[TimeControl "180+1"]
[Date "2022.06.07"]
[WhiteClock "0:02:10"]
[BlackClock "0:01:12"]

1. Nf3 {[%clk 0:03:00]}  Nf6 {[%clk 0:03:00]} 2. c4 {[%clk 0:03:01]}  e6 {[%clk 0:03:00]} 3. g3 {[%clk 0:03:00]}  d5 {[%clk 0:03:00]} 4. Bg2 {[%clk 0:03:01]}  Be7 {[%clk 0:03:00]} 5. O-O {[%clk 0:03:01]}  O-O {[%clk 0:03:01]} 6. b3 {[%clk 0:03:02]}  c5 {[%clk 0:03:00]} 7. Bb2 {[%clk 0:03:02]}  Nc6 {[%clk 0:02:59]} 8. cxd5 {[%clk 0:03:01]}  Nxd5 {[%clk 0:02:58]} 9. Nc3 {[%clk 0:03:01]}  Bf6 {[%clk 0:02:57]} 10. Qc2 {[%clk 0:02:57]}  b6 {[%clk 0:02:39]} 11. Nxd5 {[%clk 0:02:57]}  exd5 {[%clk 0:02:38]} 12. d4 {[%clk 0:02:56]}  Nxd4 {[%clk 0:02:32]} 13. Nxd4 {[%clk 0:02:56]}  Bxd4 {[%clk 0:02:33]} 14. Bxd4 {[%clk 0:02:53]}  cxd4 {[%clk 0:02:33]} 15. Rad1 {[%clk 0:02:52]}  Be6 {[%clk 0:02:32]} 16. Rxd4 {[%clk 0:02:52]}  Qf6 {[%clk 0:02:17]} 17. Rfd1 {[%clk 0:02:50]}  Rfd8 {[%clk 0:02:17]} 18. h4 {[%clk 0:02:48]}  h6 {[%clk 0:02:11]} 19. Qd2 {[%clk 0:02:45]}  Rac8 {[%clk 0:01:55]} 20. Bxd5 {[%clk 0:02:40]}  Bxd5 {[%clk 0:01:38]} 21. Rxd5 {[%clk 0:02:41]}  Rxd5 {[%clk 0:01:39]} 22. Qxd5 {[%clk 0:02:42]}  Rc2 {[%clk 0:01:27]} 23. Qe4 {[%clk 0:02:12]}  Rxa2 {[%clk 0:01:18]} 24. Kg2 {[%clk 0:02:11]}  Qe6 {[%clk 0:01:12]} 25. Rd8+ {[%clk 0:02:10]} 1-0


[Site "https://www.chess.com"]

[Event "Titled Tuesday Blitz June 07 Late 2022"]
[White "Sarana, Alexey"]
[Black "Volkov, Maksim"]
[WhiteFideId "24133795"]
[BlackFideId "54123070"]
[WhiteElo "2666"]
[BlackElo "2155"]
[Result "1-0"]
[Round "02"]
[TimeControl "180+1"]
[Date "2022.06.07"]
[WhiteClock "0:00:42"]
[BlackClock "0:00:16"]

1. d4 {[%clk 0:02:44]}  d5 {[%clk 0:02:59]} 2. c4 {[%clk 0:02:41]}  e6 {[%clk 0:02:59]} 3. Nc3 {[%clk 0:02:41]}  c6 {[%clk 0:02:59]} 4. Nf3 {[%clk 0:02:39]}  dxc4 {[%clk 0:02:59]} 5. g3 {[%clk 0:02:39]}  b5 {[%clk 0:02:57]} 6. Bg2 {[%clk 0:02:40]}  Bb7 {[%clk 0:02:57]} 7. O-O {[%clk 0:02:40]}  Nf6 {[%clk 0:02:58]} 8. Ne5 {[%clk 0:02:40]}  a6 {[%clk 0:02:56]} 9. b3 {[%clk 0:02:40]}  b4 {[%clk 0:02:52]} 10. bxc4 {[%clk 0:02:40]}  bxc3 {[%clk 0:02:50]} 11. Rb1 {[%clk 0:02:40]}  Qc7 {[%clk 0:02:44]} 12. Bf4 {[%clk 0:02:34]}  Bd6 {[%clk 0:02:35]} 13. c5 {[%clk 0:02:21]}  Bxe5 {[%clk 0:02:34]} 14. Bxe5 {[%clk 0:02:22]}  Qd7 {[%clk 0:02:01]} 15. Qb3 {[%clk 0:02:19]}  c2 {[%clk 0:02:00]} 16. Rb2 {[%clk 0:02:13]}  Bc8 {[%clk 0:01:34]} 17. Bxb8 {[%clk 0:02:10]}  O-O {[%clk 0:01:34]} 18. Bd6 {[%clk 0:02:10]}  Re8 {[%clk 0:01:34]} 19. e4 {[%clk 0:02:08]}  a5 {[%clk 0:01:26]} 20. Qxc2 {[%clk 0:02:06]}  Ba6 {[%clk 0:01:25]} 21. Rfb1 {[%clk 0:02:06]}  a4 {[%clk 0:01:23]} 22. Rb6 {[%clk 0:01:49]}  Bb5 {[%clk 0:01:22]} 23. h3 {[%clk 0:01:45]}  Qc8 {[%clk 0:01:12]} 24. d5 {[%clk 0:00:51]}  Nd7 {[%clk 0:00:40]} 25. dxc6 {[%clk 0:00:43]}  Bxc6 {[%clk 0:00:29]} 26. Rxc6 {[%clk 0:00:43]}  Qxc6 {[%clk 0:00:29]} 27. e5 {[%clk 0:00:43]}  Qa6 {[%clk 0:00:21]} 28. Bxa8 {[%clk 0:00:43]}  Rxa8 {[%clk 0:00:21]} 29. c6 {[%clk 0:00:44]}  Nb6 {[%clk 0:00:16]} 30. c7 {[%clk 0:00:44]}  Nd5 {[%clk 0:00:16]} 31. Rb8+ {[%clk 0:00:42]} 1-0


[Site "https://www.chess.com"]